[Event "RUS-chTW Premier 2019"]
[Site "Sochi"]
[Date "2019.05.02"]
[Round "2.9"]
[White "Bodnaruk, Anastasia"]
[Black "Sudakova, Irina"]
[Result "1-0"]
[ECO "C42"]
[WhiteElo "2431"]
[BlackElo "2313"]
[Annotator "NA"]
[PlyCount "141"]
[EventDate "2019.05.01"]
[EventType "team-tourn"]
[EventCountry "RUS"]
[SourceTitle "playchess.com"]
[Source "ChessBase"]
[SourceQuality "1"]
[TimeControl "40/5400+30:1800+30"]

1. e4 {[%emt 0:00:00]} e5 {[%emt 0:00:00]} 2. Nf3 {[%emt 0:00:00]} Nf6 {[%emt 0:00:00]} 3. Nxe5 {[%emt 0:00:00]} d6 {[%emt 0:00:22]} 4. Nf3 {[%emt 0:00:02]} Nxe4 {[%emt 0:00:07]} 5. Nc3 {[%emt 0:00:08]} Nf6 {[%emt 0:00:17]} 6. d4 {[%emt 0:00:21]} Be7 {[%emt 0:00:12]} 7. Bd3 {[%emt 0:00:20]} O-O {[%emt 0:00:56]} 8. h3 {[%emt 0:00:25]} Re8 {[%emt 0:00:58]} 9. O-O {[%emt 0:00:10]} Nbd7 {[%emt 0:00:34]} 10. Ne2 {[%emt 0:01:57]} Bf8 {[%emt 0:03:02]} 11. c4 {[%emt 0:02:09]} d5 {[%emt 0:04:53]} 12. c5 {[%emt 0:06:46]} Ne4 {[%emt 0:05:29]} 13. Qc2 {[%emt 0:02:00]} c6 {[%emt 0:02:50]} 14. b4 {[%emt 0:06:53]} a6 {[%emt 0:06:08]} 15. a4 {[%emt 0:17:21]} g6 {[%emt 0:02:35]} 16. Ra2 {[%emt 0:03:55]} Bg7 {[%emt 0:01:30]} 17. b5 {[%emt 0:04:05]} axb5 {[%emt 0:07:08]} 18. axb5 {[%emt 0:00:08]} Rxa2 {[%emt 0:00:10]} 19. Qxa2 {[%emt 0:00:01]} Nf8 {[%emt 0:00:56]} 20. Qa7 {[%emt 0:14:54]} Ne6 {[%emt 0:13:32]} 21. Be3 {[%emt 0:03:41]} g5 {[%emt 0:14:04]} 22. bxc6 {[%emt 0:08:37]} bxc6 {[%emt 0:00:31]} 23. Rb1 {[%emt 0:00:12]} h5 {[%emt 0:06:31]} 24. Rb8 {[%emt 0:03:19]} g4 {[%emt 0:03:41]} 25. hxg4 {[%emt 0:01:02]} hxg4 {[%emt 0:00:07]} 26. Nh2 {[%emt 0:03:43]} Qd7 {[%emt 0:10:44]} 27. Qxd7 {[%emt 0:01:20]} Bxd7 {[%emt 0:00:14]} 28. Rxe8+ {[%emt 0:00:08]} Bxe8 {[%emt 0:00:04]} 29. Nxg4 {[%emt 0:01:48]} Kf8 {[%emt 0:05:17]} 30. f3 {[%emt 0:03:21]} Nf6 {[%emt 0:00:36]} 31. Ne5 {[%emt 0:02:07]} Nd7 {[%emt 0:00:51]} 32. Ng4 {[%emt 0:02:05]} Nf6 {[%emt 0:03:30]} 33. Nf2 {[%emt 0:00:34]} Bd7 {[%emt 0:00:50]} 34. g4 {[%emt 0:02:12]} Bc8 {[%emt 0:00:57]} 35. Ng3 {[%emt 0:02:00]} Nxg4 {[%emt 0:04:37]} 36. Nxg4 {[%emt 0:05:07]} Bxd4 {[%emt 0:00:14]} 37. Bxd4 {[%emt 0:00:34]} Nxd4 {[%emt 0:00:05]} 38. Kf2 {[%emt 0:00:51]} Nb3 {[%emt 0:01:14]} 39. Ne5 {[%emt 0:01:09]} Nxc5 {[%emt 0:00:24]} 40. Bc2 {[%emt 0:00:00]} Bb7 {[%emt 0:00:00]} 41. Nf5 {[%emt 0:02:11]} f6 {[%emt 0:05:48]} 42. Ng6+ {[%emt 0:05:51]} Ke8 {[%emt 0:05:44]} 43. Nf4 {[%emt 0:00:50]} Ba6 {[%emt 0:02:44]} 44. Ke3 {[%emt 0:02:18]} Kd7 {[%emt 0:03:10]} 45. Nh5 {[%emt 0:00:58]} Ne6 {[%emt 0:08:02]} 46. Nxf6+ {[%emt 0:00:27]} Kc7 {[%emt 0:00:20]} 47. f4 {[%emt 0:05:04]} Bc4 {[%emt 0:01:47]} 48. Nd4 {[%emt 0:02:15]} Ng7 {[%emt 0:00:16]} 49. f5 {[%emt 0:05:08]} c5 {[%emt 0:02:18]} 50. Nf3 {[%emt 0:00:29]} Kd6 {[%emt 0:01:24]} 51. Nd2 {[%emt 0:06:42]} Bb5 {[%emt 0:02:54]} 52. Kf4 {[%emt 0:01:00]} c4 {[%emt 0:01:31]} 53. Nf3 {[%emt 0:00:42]} Ba6 {[%emt 0:01:11]} 54. Nd4 {[%emt 0:03:42]} Bc8 {[%emt 0:00:43]} 55. Ng4 {[%emt 0:00:45]} Kc5 {[%emt 0:00:31]} 56. f6 {[%emt 0:02:03]} Kxd4 {[%emt 0:01:52]} 57. fxg7 {[%emt 0:00:04]} Be6 {[%emt 0:00:03]} 58. Bf5 {[%emt 0:00:51]} c3 {[%emt 0:00:22]} 59. Bxe6 {[%emt 0:01:26]} c2 {[%emt 0:00:03]} 60. g8=Q {[%emt 0:00:07]} c1=Q+ {[%emt 0:00:03]} 61. Kf5 {[%emt 0:00:28]} Qc2+ {[%emt 0:00:47]} 62. Kf6 {[%emt 0:00:14]} Qc7 {[%emt 0:00:47]} 63. Qa8 {[%emt 0:00:52]} Qf4+ {[%emt 0:00:27]} 64. Kg6 {[%emt 0:00:14]} Qd6 {[%emt 0:00:20]} 65. Qa1+ {[%emt 0:00:33]} Kd3 {[%emt 0:00:22]} 66. Qd1+ {[%emt 0:00:41]} Ke4 {[%emt 0:01:30]} 67. Nf6+ {[%emt 0:00:48]} Ke5 {[%emt 0:01:12]} 68. Qe1+ {[%emt 0:00:02]} Kd4 {[%emt 0:00:16]} 69. Bxd5 {[%emt 0:00:26]} Qh2 {[%emt 0:01:15]} 70. Qb4+ {[%emt 0:00:16]} Kd3 {[%emt 0:00:12]} 71. Qc4+ {[%emt 0:00:19]} 1-0

[Event "RUS-chTW Premier 2019"]
[Site "Sochi"]
[Date "2019.05.02"]
[Round "2.10"]
[White "Protopopova, Anastasiya"]
[Black "Ovod, Evgenija"]
[Result "1-0"]
[ECO "A90"]
[WhiteElo "2249"]
[BlackElo "2362"]
[Annotator "NA"]
[PlyCount "81"]
[EventDate "2019.05.01"]
[EventType "team-tourn"]
[EventCountry "RUS"]
[SourceTitle "playchess.com"]
[Source "ChessBase"]
[SourceQuality "1"]
[TimeControl "40/5400+30:1800+30"]

1. d4 {[%emt 0:00:00]} e6 {[%emt 0:00:00]} 2. c4 {[%emt 0:00:21]} f5 {[%emt 0:00:00]} 3. g3 {[%emt 0:00:13]} Nf6 {[%emt 0:00:00]} 4. Bg2 {[%emt 0:00:10]} c6 {[%emt 0:00:02]} 5. Qc2 {[%emt 0:02:52]} d5 {[%emt 0:00:09]} 6. Nh3 {[%emt 0:00:49]} Bd6 {[%emt 0:00:06]} 7. O-O {[%emt 0:00:05]} O-O {[%emt 0:00:06]} 8. Bf4 {[%emt 0:02:07]} Be7 {[%emt 0:00:06]} 9. Nd2 {[%emt 0:06:26]} h6 {[%emt 0:00:48]} 10. Bxb8 {[%emt 0:01:18]} Rxb8 {[%emt 0:00:09]} 11. Nf4 {[%emt 0:00:09]} Qe8 {[%emt 0:09:27]} 12. Nf3 {[%emt 0:05:45]} Bd6 {[%emt 0:00:49]} 13. Nd3 {[%emt 0:05:38]} Nd7 {[%emt 0:09:15]} 14. b4 {[%emt 0:05:24]} g5 {[%emt 0:08:52]} 15. Rfe1 {[%emt 0:09:31]} Qg6 {[%emt 0:03:36]} 16. a4 {[%emt 0:11:56]} Qf6 {[%emt 0:11:51]} 17. e3 {[%emt 0:03:18]} g4 {[%emt 0:04:20]} 18. Nd2 {[%emt 0:01:29]} h5 {[%emt 0:00:17]} 19. b5 {[%emt 0:01:07]} h4 {[%emt 0:00:50]} 20. Rab1 {[%emt 0:04:19]} Rd8 {[%emt 0:14:26]} 21. a5 {[%emt 0:09:30]} a6 {[%emt 0:10:18]} 22. bxc6 {[%emt 0:04:24]} bxc6 {[%emt 0:00:06]} 23. Qa4 {[%emt 0:02:35]} Rxb1 {[%emt 0:02:16]} 24. Rxb1 {[%emt 0:00:12]} Nb8 {[%emt 0:00:05]} 25. Nb3 {[%emt 0:05:30]} Kg7 {[%emt 0:12:17]} 26. Nbc5 {[%emt 0:02:07]} Rh8 {[%emt 0:00:05]} 27. Rb6 {[%emt 0:03:12]} hxg3 {[%emt 0:07:11]} 28. hxg3 {[%emt 0:00:06]} Qh6 {[%emt 0:02:32]} 29. Nf4 {[%emt 0:02:07]} e5 {[%emt 0:00:55]} 30. dxe5 {[%emt 0:01:11]} Bxc5 {[%emt 0:00:33]} 31. Rxb8 {[%emt 0:00:16]} d4 {[%emt 0:00:24]} 32. Qb3 {[%emt 0:08:37]} dxe3 {[%emt 0:00:26]} 33. fxe3 {[%emt 0:00:57]} Qh2+ {[%emt 0:01:47]} 34. Kf2 {[%emt 0:00:01]} Kh6 {[%emt 0:00:58]} 35. Qd3 {[%emt 0:01:22]} Re8 {[%emt 0:01:29]} 36. Rb1 {[%emt 0:01:32]} Rxe5 {[%emt 0:00:36]} 37. Rh1 {[%emt 0:00:09]} Qxh1 {[%emt 0:00:22]} 38. Bxh1 {[%emt 0:00:07]} Rxe3 {[%emt 0:00:05]} 39. Qxe3 {[%emt 0:00:25]} Bxe3+ 40. Kxe3 {[%emt 0:00:00]} c5 {[%emt 0:00:00]} 41. Bd5 {[%emt 0:01:33]} 1-0

[Event "RUS-chTW Premier 2019"]
[Site "Sochi"]
[Date "2019.05.02"]
[Round "2.11"]
[White "Belenkaya, Dina"]
[Black "Lysenko, Margarita"]
[Result "1/2-1/2"]
[ECO "B91"]
[WhiteElo "2315"]
[BlackElo "2211"]
[Annotator "NA"]
[PlyCount "172"]
[EventDate "2019.05.01"]
[EventType "team-tourn"]
[EventCountry "RUS"]
[SourceTitle "playchess.com"]
[Source "ChessBase"]
[SourceQuality "1"]
[TimeControl "40/5400+30:1800+30"]

1. e4 {[%emt 0:00:00]} c5 {[%emt 0:00:00]} 2. Nf3 {[%emt 0:00:00]} d6 {[%emt 0:00:00]} 3. d4 {[%emt 0:00:03]} cxd4 {[%emt 0:00:00]} 4. Nxd4 {[%emt 0:00:05]} Nf6 {[%emt 0:00:07]} 5. Nc3 {[%emt 0:00:10]} a6 {[%emt 0:00:10]} 6. g3 {[%emt 0:00:22]} e5 {[%emt 0:02:07]} 7. Nde2 {[%emt 0:00:10]} Be7 {[%emt 0:01:55]} 8. Bg2 {[%emt 0:00:16]} Nbd7 {[%emt 0:02:19]} 9. a4 {[%emt 0:00:22]} b6 {[%emt 0:01:55]} 10. Nd5 {[%emt 0:01:39]} Nxd5 {[%emt 0:06:01]} 11. Qxd5 {[%emt 0:00:25]} Rb8 {[%emt 0:00:43]} 12. Nc3 {[%emt 0:00:31]} Bb7 {[%emt 0:12:05]} 13. Qd1 {[%emt 0:05:48]} Rc8 {[%emt 0:01:42]} 14. O-O {[%emt 0:01:12]} O-O {[%emt 0:04:40]} 15. Be3 {[%emt 0:03:02]} Nf6 {[%emt 0:12:38]} 16. Qe2 {[%emt 0:06:14]} Qc7 {[%emt 0:15:12]} 17. Rfd1 {[%emt 0:00:48]} Rfe8 {[%emt 0:15:13]} 18. Rd2 {[%emt 0:01:50]} h6 {[%emt 0:03:08]} 19. Rad1 {[%emt 0:03:55]} Rb8 {[%emt 0:05:33]} 20. h3 {[%emt 0:02:16]} Rec8 {[%emt 0:04:10]} 21. Kh2 {[%emt 0:01:40]} Bf8 {[%emt 0:02:53]} 22. g4 {[%emt 0:13:32]} Nd7 {[%emt 0:04:00]} 23. g5 {[%emt 0:17:15]} hxg5 {[%emt 0:00:35]} 24. Bxg5 {[%emt 0:00:32]} Nc5 {[%emt 0:01:52]} 25. Be3 {[%emt 0:04:25]} Bc6 {[%emt 0:02:47]} 26. b3 {[%emt 0:03:40]} Nd7 {[%emt 0:00:39]} 27. Qg4 {[%emt 0:05:43]} Nf6 {[%emt 0:00:28]} 28. Qh4 {[%emt 0:00:29]} b5 {[%emt 0:00:25]} 29. axb5 {[%emt 0:01:16]} axb5 {[%emt 0:00:17]} 30. Rg1 {[%emt 0:02:50]} b4 {[%emt 0:00:24]} 31. Nd5 {[%emt 0:00:50]} Bxd5 {[%emt 0:00:53]} 32. exd5 {[%emt 0:00:02]} Re8 {[%emt 0:00:30]} 33. Bh1 {[%emt 0:01:14]} Be7 {[%emt 0:00:33]} 34. Qh6 {[%emt 0:08:33]} g6 {[%emt 0:00:12]} 35. Bf3 {[%emt 0:04:45]} Bf8 {[%emt 0:00:21]} 36. Qh4 {[%emt 0:00:10]} Bg7 {[%emt 0:00:17]} 37. Bg5 {[%emt 0:04:14]} Nh7 {[%emt 0:00:30]} 38. Be3 {[%emt 0:02:08]} Bf6 {[%emt 0:00:47]} 39. Qe4 {[%emt 0:00:51]} Bg7 {[%emt 0:00:25]} 40. Qh4 {[%emt 0:00:00]} Bf6 {[%emt 0:00:00]} 41. Qe4 {[%emt 0:04:06]} Qe7 {[%emt 0:12:51]} 42. Be2 {[%emt 0:03:48]} Kg7 {[%emt 0:03:21]} 43. Bf1 {[%emt 0:04:45]} Rh8 {[%emt 0:01:26]} 44. f4 {[%emt 0:05:55]} exf4 {[%emt 0:01:32]} 45. Qxe7 {[%emt 0:00:02]} Bxe7 {[%emt 0:00:12]} 46. Bxf4 {[%emt 0:00:05]} Nf6 {[%emt 0:02:37]} 47. Bc4 {[%emt 0:01:49]} Nh5 {[%emt 0:02:04]} 48. Bg5 {[%emt 0:04:39]} Bxg5 {[%emt 0:01:06]} 49. Rxg5 {[%emt 0:00:01]} Rhe8 {[%emt 0:04:02]} 50. Rd4 {[%emt 0:02:07]} Nf6 {[%emt 0:01:05]} 51. Rg1 {[%emt 0:04:09]} Nd7 {[%emt 0:01:04]} 52. Ra1 {[%emt 0:01:02]} Ne5 {[%emt 0:00:37]} 53. Be2 {[%emt 0:00:28]} Rec8 {[%emt 0:00:51]} 54. Bd1 {[%emt 0:00:59]} Rb6 {[%emt 0:00:24]} 55. Kg2 {[%emt 0:00:29]} Rc7 {[%emt 0:05:16]} 56. Ra4 {[%emt 0:00:13]} Rcb7 {[%emt 0:00:06]} 57. h4 {[%emt 0:01:23]} Rb8 {[%emt 0:00:19]} 58. Kf2 {[%emt 0:00:14]} R8b7 {[%emt 0:00:17]} 59. Ke3 {[%emt 0:00:15]} Nd7 {[%emt 0:01:11]} 60. Kd2 {[%emt 0:00:53]} Ne5 {[%emt 0:00:40]} 61. c3 {[%emt 0:01:31]} bxc3+ {[%emt 0:00:12]} 62. Kxc3 {[%emt 0:00:06]} Rc7+ {[%emt 0:00:38]} 63. Kd2 {[%emt 0:00:17]} Nd7 {[%emt 0:00:30]} 64. b4 {[%emt 0:00:16]} Rcb7 {[%emt 0:00:40]} 65. Be2 {[%emt 0:00:27]} Rc7 {[%emt 0:00:22]} 66. b5 {[%emt 0:01:58]} Rc5 {[%emt 0:00:35]} 67. Ra7 {[%emt 0:02:20]} Nf6 {[%emt 0:00:29]} 68. Bc4 {[%emt 0:01:31]} Rxc4 {[%emt 0:00:33]} 69. Rxc4 {[%emt 0:00:04]} Rxb5 {[%emt 0:00:21]} 70. Rcc7 {[%emt 0:00:57]} Rxd5+ {[%emt 0:00:09]} 71. Ke2 {[%emt 0:00:22]} Re5+ {[%emt 0:00:11]} 72. Kd3 {[%emt 0:00:10]} Rd5+ {[%emt 0:00:12]} 73. Kc4 {[%emt 0:00:34]} Rc5+ {[%emt 0:00:13]} 74. Rxc5 {[%emt 0:00:03]} dxc5 {[%emt 0:00:04]} 75. Kxc5 {[%emt 0:00:05]} Ne4+ {[%emt 0:01:23]} 76. Kd4 {[%emt 0:00:04]} Ng3 {[%emt 0:00:20]} 77. Ke5 {[%emt 0:00:35]} Nf5 {[%emt 0:00:34]} 78. Ra4 {[%emt 0:02:07]} Kh6 {[%emt 0:00:42]} 79. Kf6 {[%emt 0:00:44]} Kh5 {[%emt 0:00:13]} 80. Kxf7 {[%emt 0:00:29]} Nxh4 {[%emt 0:00:20]} 81. Kf6 {[%emt 0:00:16]} g5 {[%emt 0:01:13]} 82. Rb4 {[%emt 0:00:49]} Nf3 {[%emt 0:00:35]} 83. Kf5 {[%emt 0:01:07]} Nh4+ {[%emt 0:00:09]} 84. Kf6 {[%emt 0:00:03]} Nf3 {[%emt 0:00:11]} 85. Kf5 {[%emt 0:00:29]} Nh4+ {[%emt 0:00:06]} 86. Kf6 {[%emt 0:00:10]} Nf3 {[%emt 0:00:07]} 1/2-1/2

[Event "RUS-chTW Premier 2019"]
[Site "Sochi"]
[Date "2019.05.02"]
[Round "2.12"]
[White "Geller, Anastasiya"]
[Black "Balaian, Alina"]
[Result "0-1"]
[ECO "E86"]
[WhiteElo "2187"]
[BlackElo "2250"]
[Annotator "NA"]
[PlyCount "160"]
[EventDate "2019.05.01"]
[EventType "team-tourn"]
[EventCountry "RUS"]
[SourceTitle "playchess.com"]
[Source "ChessBase"]
[SourceQuality "1"]
[TimeControl "40/5400+30:1800+30"]

1. d4 {[%emt 0:00:00]} Nf6 {[%emt 0:00:00]} 2. c4 {[%emt 0:00:00]} g6 {[%emt 0:00:00]} 3. Nc3 {[%emt 0:00:00]} Bg7 {[%emt 0:00:00]} 4. e4 {[%emt 0:00:23]} d6 {[%emt 0:00:00]} 5. f3 {[%emt 0:00:13]} O-O {[%emt 0:00:00]} 6. Be3 {[%emt 0:00:14]} e5 {[%emt 0:00:24]} 7. Nge2 {[%emt 0:02:37]} c6 {[%emt 0:06:28]} 8. d5 {[%emt 0:06:11]} c5 {[%emt 0:00:30]} 9. Qd2 {[%emt 0:00:37]} Ne8 {[%emt 0:01:38]} 10. g3 {[%emt 0:06:58]} f5 {[%emt 0:01:26]} 11. Bg2 {[%emt 0:00:15]} a6 {[%emt 0:02:02]} 12. a4 {[%emt 0:11:10]} Nd7 {[%emt 0:03:07]} 13. O-O {[%emt 0:07:03]} Ndf6 {[%emt 0:08:28]} 14. a5 {[%emt 0:03:05]} Bd7 {[%emt 0:13:44]} 15. Bg5 {[%emt 0:04:44]} b5 {[%emt 0:01:26]} 16. axb6 {[%emt 0:03:31]} Qxb6 {[%emt 0:00:12]} 17. Na4 {[%emt 0:04:45]} Bxa4 {[%emt 0:07:41]} 18. Rxa4 {[%emt 0:00:06]} Rb8 {[%emt 0:01:53]} 19. Rfa1 {[%emt 0:07:10]} Nc7 {[%emt 0:05:51]} 20. R1a2 {[%emt 0:00:34]} Nd7 {[%emt 0:03:41]} 21. Be3 {[%emt 0:04:57]} fxe4 {[%emt 0:07:04]} 22. fxe4 {[%emt 0:00:08]} Qb7 {[%emt 0:00:18]} 23. Qc1 {[%emt 0:06:17]} Nb6 {[%emt 0:02:12]} 24. R4a3 {[%emt 0:00:11]} Qc8 {[%emt 0:00:22]} 25. h3 {[%emt 0:03:03]} Qd7 {[%emt 0:02:29]} 26. Bg5 {[%emt 0:00:24]} Qf7 {[%emt 0:00:48]} 27. Rf3 {[%emt 0:00:19]} Qd7 {[%emt 0:00:23]} 28. Raa3 {[%emt 0:01:10]} Na4 {[%emt 0:04:15]} 29. Rxf8+ {[%emt 0:02:20]} Bxf8 {[%emt 0:02:50]} 30. b3 {[%emt 0:01:39]} Nb6 {[%emt 0:00:26]} 31. Qd2 {[%emt 0:00:54]} Nc8 {[%emt 0:01:29]} 32. Nc1 {[%emt 0:00:41]} Bg7 {[%emt 0:06:41]} 33. Nd3 {[%emt 0:01:19]} Nb6 {[%emt 0:02:10]} 34. Kh2 {[%emt 0:00:32]} Qc8 {[%emt 0:05:09]} 35. Ra1 {[%emt 0:03:18]} Ne8 {[%emt 0:03:01]} 36. Rc1 {[%emt 0:09:17]} Rb7 {[%emt 0:03:12]} 37. Qa5 {[%emt 0:03:08]} Bf8 {[%emt 0:05:42]} 38. Qxa6 {[%emt 0:02:01]} h6 {[%emt 0:00:54]} 39. Be3 {[%emt 0:01:14]} Nc7 {[%emt 0:00:52]} 40. Qa2 {[%emt 0:00:00]} Nd7 {[%emt 0:00:00]} 41. Rf1 {[%emt 0:08:08]} Qb8 {[%emt 0:04:33]} 42. Qf2 {[%emt 0:02:17]} Qe8 {[%emt 0:00:06]} 43. Nc1 {[%emt 0:01:53]} Bg7 {[%emt 0:00:44]} 44. Qa2 {[%emt 0:00:25]} Qb8 {[%emt 0:00:56]} 45. Qd2 {[%emt 0:00:09]} Kh7 {[%emt 0:01:38]} 46. Rf7 {[%emt 0:01:10]} Qe8 {[%emt 0:00:19]} 47. Qf2 {[%emt 0:00:29]} Kg8 {[%emt 0:01:49]} 48. Rf3 {[%emt 0:00:28]} Qe7 {[%emt 0:03:14]} 49. Qd2 {[%emt 0:00:40]} Kh7 {[%emt 0:00:33]} 50. Rf2 {[%emt 0:00:55]} Na6 {[%emt 0:01:32]} 51. Qc3 {[%emt 0:01:24]} Nb4 {[%emt 0:01:03]} 52. Na2 {[%emt 0:01:00]} Qe8 {[%emt 0:00:59]} 53. Nxb4 {[%emt 0:01:25]} Rxb4 {[%emt 0:00:00]} 54. Ra2 {[%emt 0:00:11]} Qb8 {[%emt 0:00:22]} 55. Ra3 {[%emt 0:00:07]} Qb7 {[%emt 0:03:16]} 56. Bd2 {[%emt 0:00:26]} Rb6 {[%emt 0:00:55]} 57. Qf3 {[%emt 0:02:28]} Qb8 {[%emt 0:02:09]} 58. h4 {[%emt 0:04:17]} Nf6 {[%emt 0:01:30]} 59. Bh3 {[%emt 0:00:10]} Rb7 {[%emt 0:00:25]} 60. g4 {[%emt 0:05:35]} Ra7 {[%emt 0:04:14]} 61. Rxa7 {[%emt 0:00:27]} Qxa7 {[%emt 0:00:01]} 62. Bg2 {[%emt 0:04:58]} Qa2 {[%emt 0:01:19]} 63. Be1 {[%emt 0:00:31]} Qc2 {[%emt 0:03:04]} 64. Kg3 {[%emt 0:01:23]} Kg8 {[%emt 0:01:07]} 65. Qe3 {[%emt 0:01:36]} Nh7 {[%emt 0:03:45]} 66. Qc3 {[%emt 0:00:46]} Qb1 {[%emt 0:00:47]} 67. Bf3 {[%emt 0:01:26]} Nf6 {[%emt 0:00:19]} 68. Qe3 {[%emt 0:00:06]} Qc2 {[%emt 0:00:51]} 69. g5 {[%emt 0:04:06]} hxg5 {[%emt 0:00:00]} 70. hxg5 {[%emt 0:00:05]} Nh7 {[%emt 0:00:28]} 71. Bg4 {[%emt 0:00:21]} Bf8 {[%emt 0:01:48]} 72. Kh3 {[%emt 0:03:22]} Be7 {[%emt 0:00:55]} 73. Bh4 {[%emt 0:00:19]} Kg7 {[%emt 0:01:29]} 74. Be6 {[%emt 0:00:26]} Qd1 {[%emt 0:00:16]} 75. Qf2 {[%emt 0:00:55]} Bxg5 {[%emt 0:00:59]} 76. Qf7+ {[%emt 0:00:30]} Kh6 {[%emt 0:00:01]} 77. Qf2 {[%emt 0:00:31]} Qh1+ {[%emt 0:00:23]} 78. Kg4 {[%emt 0:00:22]} Qxe4+ {[%emt 0:00:30]} 79. Kh3 {[%emt 0:00:08]} Qh1+ {[%emt 0:00:05]} 80. Kg4 {[%emt 0:00:07]} Nf6+ {[%emt 0:00:22]} 0-1

[Event "RUS-chTW Premier 2019"]
[Site "Sochi"]
[Date "2019.05.02"]
[Round "2.13"]
[White "Borisova, Ekaterina"]
[Black "Loskutova, Viktoriya"]
[Result "0-1"]
[ECO "E04"]
[WhiteElo "2292"]
[BlackElo "2096"]
[Annotator "NA"]
[PlyCount "127"]
[EventDate "2019.05.01"]
[EventType "team-tourn"]
[EventCountry "RUS"]
[SourceTitle "playchess.com"]
[Source "ChessBase"]
[SourceQuality "1"]
[TimeControl "40/5400+30:1800+30"]

1. d4 {[%emt 0:00:00]} d5 {[%emt 0:00:00]} 2. c4 {[%emt 0:00:00]} e6 {[%emt 0:00:00]} 3. Nf3 {[%emt 0:00:00]} Nf6 {[%emt 0:00:00]} 4. g3 {[%emt 0:00:00]} dxc4 {[%emt 0:00:00]} 5. Bg2 {[%emt 0:00:00]} a6 {[%emt 0:00:00]} 6. Ne5 {[%emt 0:00:50]} Bb4+ {[%emt 0:00:19]} 7. Nc3 {[%emt 0:02:12]} Nd5 {[%emt 0:00:19]} 8. Bd2 {[%emt 0:02:56]} Bxc3 {[%emt 0:01:37]} 9. bxc3 {[%emt 0:00:55]} Nb6 {[%emt 0:08:02]} 10. O-O {[%emt 0:02:36]} O-O {[%emt 0:01:12]} 11. e4 {[%emt 0:03:33]} N8d7 {[%emt 0:01:21]} 12. f4 {[%emt 0:08:34]} Nxe5 {[%emt 0:11:25]} 13. fxe5 {[%emt 0:00:36]} f6 {[%emt 0:15:12]} 14. exf6 {[%emt 0:05:05]} Rxf6 {[%emt 0:00:05]} 15. Qh5 {[%emt 0:02:55]} Bd7 {[%emt 0:07:31]} 16. e5 {[%emt 0:11:36]} Rxf1+ {[%emt 0:00:44]} 17. Rxf1 {[%emt 0:00:04]} Qe8 {[%emt 0:02:53]} 18. Qh4 {[%emt 0:08:04]} Bc6 {[%emt 0:05:59]} 19. Bh3 {[%emt 0:07:24]} Nd7 {[%emt 0:18:34]} 20. Bg4 {[%emt 0:10:12]} Nf8 {[%emt 0:04:59]} 21. Bh5 {[%emt 0:07:08]} Ng6 {[%emt 0:00:35]} 22. Qg5 {[%emt 0:00:17]} Be4 {[%emt 0:08:13]} 23. Be2 {[%emt 0:02:59]} b5 {[%emt 0:04:19]} 24. h4 {[%emt 0:00:05]} Qe7 {[%emt 0:03:28]} 25. Qg4 {[%emt 0:05:06]} Bf5 {[%emt 0:03:30]} 26. Qf3 {[%emt 0:00:04]} Rf8 {[%emt 0:00:03]} 27. Qc6 {[%emt 0:00:31]} Qe8 {[%emt 0:02:01]} 28. Qxc7 {[%emt 0:02:29]} Be4 {[%emt 0:00:22]} 29. h5 {[%emt 0:04:04]} Rxf1+ {[%emt 0:00:05]} 30. Bxf1 {[%emt 0:02:21]} Nf8 {[%emt 0:00:09]} 31. Be2 {[%emt 0:01:07]} Qf7 {[%emt 0:01:40]} 32. Qd6 {[%emt 0:00:33]} Bf3 {[%emt 0:00:11]} 33. Bxf3 {[%emt 0:03:15]} Qxf3 {[%emt 0:00:01]} 34. Be1 {[%emt 0:00:08]} Qe3+ {[%emt 0:01:18]} 35. Kf1 {[%emt 0:00:05]} Qd3+ {[%emt 0:00:03]} 36. Kg2 {[%emt 0:01:18]} Qe4+ {[%emt 0:00:08]} 37. Kf2 {[%emt 0:00:11]} Qc2+ {[%emt 0:00:43]} 38. Kf3 {[%emt 0:00:56]} Qd3+ {[%emt 0:00:56]} 39. Kf2 {[%emt 0:00:11]} Qc2+ {[%emt 0:00:09]} 40. Kg1 {[%emt 0:00:00]} Qb1 {[%emt 0:00:00]} 41. Kf1 {[%emt 0:01:21]} Qxa2 {[%emt 0:05:13]} 42. d5 {[%emt 0:00:43]} Qh2 {[%emt 0:00:36]} 43. dxe6 {[%emt 0:03:26]} Qh3+ {[%emt 0:00:10]} 44. Ke2 {[%emt 0:00:09]} Qxh5+ {[%emt 0:06:41]} 45. Ke3 {[%emt 0:00:31]} Qh6+ {[%emt 0:00:04]} 46. Ke4 {[%emt 0:00:08]} Qxe6 {[%emt 0:00:09]} 47. Qb8 {[%emt 0:00:40]} Qc6+ {[%emt 0:03:08]} 48. Ke3 {[%emt 0:01:19]} Kf7 {[%emt 0:00:56]} 49. Qa7+ {[%emt 0:03:01]} Nd7 {[%emt 0:00:21]} 50. Kf4 {[%emt 0:00:04]} Qh6+ {[%emt 0:02:22]} 51. Ke4 {[%emt 0:01:49]} Qh1+ {[%emt 0:02:38]} 52. Kf4 {[%emt 0:00:05]} Qd5 {[%emt 0:00:15]} 53. Bf2 {[%emt 0:03:06]} Qxe5+ {[%emt 0:00:16]} 54. Kf3 {[%emt 0:00:03]} Qd5+ {[%emt 0:00:20]} 55. Ke2 {[%emt 0:00:12]} Qd3+ {[%emt 0:00:12]} 56. Ke1 {[%emt 0:00:04]} Qxc3+ {[%emt 0:00:09]} 57. Kf1 {[%emt 0:00:03]} Qd3+ {[%emt 0:00:10]} 58. Kg1 {[%emt 0:00:03]} Qd6 {[%emt 0:02:32]} 59. Qb7 {[%emt 0:00:13]} h6 {[%emt 0:01:25]} 60. Kg2 {[%emt 0:00:08]} Ke6 {[%emt 0:01:35]} 61. Qe4+ {[%emt 0:00:07]} Ne5 {[%emt 0:00:50]} 62. Qh7 {[%emt 0:00:24]} Qd5+ {[%emt 0:00:34]} 63. Kf1 {[%emt 0:00:07]} Qd3+ {[%emt 0:00:04]} 64. Kg1 {[%emt 0:00:04]} 0-1